[Event "NJSK 2026 Jeugd C"]
[Site "Helmond, Netherlands"]
[Date "2026.04.29"]
[Round "6.8"]
[White "Zhang, Xiheng"]
[Black "Uitermark, Imre"]
[Result "1-0"]
[TimeControl "90min/40moves + 30sec/move"]
[WhiteTitle "-"]
[BlackTitle "-"]
[WhiteFideId "40102386"]
[BlackFideId "40105199"]
[WhiteElo "2135"]
[BlackElo "1957"]

1. e4 {[%clk 01:30:58]} {[%emt 00:00:01]} c5 {[%clk 01:30:57]} {[%emt
00:00:03]} 2. Nf3 {[%clk 01:31:24]} {[%emt 00:00:05]} Nc6 {[%clk 01:31:26]}
{[%emt 00:00:01]} 3. d4 {[%clk 01:31:48]} {[%emt 00:00:05]} cxd4 {[%clk
01:31:54]} {[%emt 00:00:03]} 4. Nxd4 {[%clk 01:32:13]} {[%emt 00:00:05]} Nf6
{[%clk 01:32:21]} {[%emt 00:00:04]} 5. Nc3 {[%clk 01:32:37]} {[%emt 00:00:05]}
e5 {[%clk 01:32:47]} {[%emt 00:00:04]} 6. Ndb5 {[%clk 01:33:01]} {[%emt
00:00:05]} d6 {[%clk 01:33:13]} {[%emt 00:00:05]} 7. Bg5 {[%clk 01:33:24]}
{[%emt 00:00:06]} a6 {[%clk 01:33:40]} {[%emt 00:00:04]} 8. Na3 {[%clk
01:33:48]} {[%emt 00:00:05]} b5 {[%clk 01:34:07]} {[%emt 00:00:04]} 9. Bxf6
{[%clk 01:34:09]} {[%emt 00:00:08]} gxf6 {[%clk 01:34:36]} {[%emt 00:00:02]} 10.
Nd5 {[%clk 01:34:31]} {[%emt 00:00:08]} Bg7 {[%clk 01:35:02]} {[%emt 00:00:04]}
11. c3 {[%clk 01:34:54]} {[%emt 00:00:06]} f5 {[%clk 01:35:11]} {[%emt
00:00:22]} 12. exf5 {[%clk 01:35:14]} {[%emt 00:00:10]} Bxf5 {[%clk 01:35:34]}
{[%emt 00:00:07]} 13. Nc2 {[%clk 01:35:37]} {[%emt 00:00:07]} O-O {[%clk
01:35:54]} {[%emt 00:00:10]} 14. Nce3 {[%clk 01:36:03]} {[%emt 00:00:03]} Be6
{[%clk 01:36:22]} {[%emt 00:00:03]} 15. Bd3 {[%clk 01:36:25]} {[%emt 00:00:08]}
f5 {[%clk 01:36:48]} {[%emt 00:00:04]} 16. O-O {[%clk 01:36:48]} {[%emt
00:00:05]} e4 {[%clk 01:37:16]} {[%emt 00:00:03]} 17. Nf4 {[%clk 01:37:08]}
{[%emt 00:00:10]} Bf7 {[%clk 01:37:43]} {[%emt 00:00:03]} 18. Bc2 {[%clk
01:37:13]} {[%emt 00:00:24]} Be5 {[%clk 01:38:09]} {[%emt 00:00:05]} 19. Nfd5
{[%clk 01:36:01]} {[%emt 00:01:42]} Qg5 {[%clk 01:38:16]} {[%emt 00:00:23]} 20.
f4 {[%clk 01:35:13]} {[%emt 00:01:18]} exf3 {[%clk 01:38:40]} {[%emt 00:00:06]}
21. Rxf3 {[%clk 01:28:20]} {[%emt 00:07:23]} Bh5 {[%clk 01:39:05]} {[%emt
00:00:05]} 22. Nc7 {[%clk 01:28:46]} {[%emt 00:00:05]} Kh8 {[%clk 01:37:45]}
{[%emt 00:01:49]} 23. Nxa8 {[%clk 01:22:55]} {[%emt 00:06:22]} Bf4 {[%clk
01:38:03]} {[%emt 00:00:11]} 24. Nd5 {[%clk 00:58:28]} {[%emt 00:24:57]} Ne5
{[%clk 01:38:07]} {[%emt 00:00:26]} 25. Qd4 {[%clk 00:57:32]} {[%emt 00:01:26]}
Bxf3 {[%clk 01:06:07]} {[%emt 00:32:30]} 26. Nxf4 {[%clk 00:57:46]} {[%emt
00:00:17]} Rf6 {[%clk 01:00:42]} {[%emt 00:05:54]} 27. Nc7 {[%clk 00:36:04]}
{[%emt 00:22:13]} Bxg2 {[%clk 00:57:42]} {[%emt 00:03:29]} 28. Nfe6 {[%clk
00:34:14]} {[%emt 00:02:19]} Qg8 {[%clk 00:54:09]} {[%emt 00:03:59]} 29. Kf2
{[%clk 00:32:46]} {[%emt 00:02:04]} Be4 {[%clk 00:48:46]} {[%emt 00:05:51]} 30.
Rg1 {[%clk 00:26:41]} {[%emt 00:06:36]} Qxg1+ {[%clk 00:48:55]} 31. Kxg1 {[%clk
00:26:55]} {[%emt 00:00:37]} Nf3+ {[%clk 00:49:20]} {[%emt 00:00:05]} 32. Kf2
{[%clk 00:26:48]} {[%emt 00:00:37]} Nxd4 {[%clk 00:49:45]} {[%emt 00:00:05]} 33.
Nxd4 {[%clk 00:27:10]} {[%emt 00:00:07]} d5 {[%clk 00:49:20]} {[%emt 00:00:56]}
34. Bb3 {[%clk 00:10:42]} {[%emt 00:16:59]} Rg6 {[%clk 00:48:04]} {[%emt
00:01:44]} 35. Nf3 {[%clk 00:09:49]} {[%emt 00:01:24]} Rh6 {[%clk 00:46:47]}
{[%emt 00:01:47]} 36. Bxd5 {[%clk 00:09:16]} {[%emt 00:01:03]} Rh3 {[%clk
00:46:26]} {[%emt 00:00:51]} 37. Bxe4 {[%clk 00:06:32]} {[%emt 00:03:15]} fxe4
{[%clk 00:46:45]} {[%emt 00:00:11]} 38. Nd4 {[%clk 00:05:01]} {[%emt 00:02:00]}
Rxh2+ {[%clk 00:47:01]} {[%emt 00:00:15]} 39. Ke3 {[%clk 00:05:27]} {[%emt
00:00:04]} Rxb2 {[%clk 00:47:22]} {[%emt 00:00:09]} 40. Nxa6 {[%clk 00:05:48]}
{[%emt 00:00:09]} Rxa2 {[%clk 00:47:25]} {[%emt 00:00:26]} 41. Nc7 {[%clk
00:05:50]} {[%emt 00:00:28]} Ra3 {[%clk 00:47:10]} {[%emt 00:00:45]} 42. Ncxb5
{[%clk 00:06:06]} {[%emt 00:00:14]} Rxc3+ {[%clk 00:47:33]} {[%emt 00:00:07]}
43. Nxc3 {[%clk 00:06:30]} {[%emt 00:00:06]} Kg7 {[%clk 00:47:59]} {[%emt
00:00:05]} 44. Kxe4 {[%clk 00:06:39]} {[%emt 00:00:21]} Kf6 {[%clk 00:47:48]}
{[%emt 00:00:36]} 45. Kf4 {[%clk 00:06:06]} {[%emt 00:01:07]} h5 {[%clk
00:47:54]} {[%emt 00:00:24]} 46. Ne4+ {[%clk 00:05:54]} {[%emt 00:00:43]} Ke7
{[%clk 00:48:18]} {[%emt 00:00:06]} 47. Ng5 {[%clk 00:06:17]} {[%emt 00:00:07]}
Kd6 {[%clk 00:48:38]} {[%emt 00:00:10]} 48. Ke4 {[%clk 00:06:40]} {[%emt
00:00:07]} h4 {[%clk 00:49:03]} {[%emt 00:00:05]} 49. Nh3 {[%clk 00:07:06]}
{[%emt 00:00:03]} Kc5 {[%clk 00:49:29]} {[%emt 00:00:05]} 50. Nc2 {[%clk
00:07:24]} {[%emt 00:00:12]} Kd6 {[%clk 00:49:55]} {[%emt 00:00:04]} 51. Ne3
{[%clk 00:07:46]} {[%emt 00:00:08]} Kc5 {[%clk 00:50:20]} {[%emt 00:00:05]} 52.
Ke5 {[%clk 00:08:12]} {[%emt 00:00:04]} Kc6 {[%clk 00:50:42]} {[%emt 00:00:08]}
53. Nd1 {[%clk 00:08:02]} {[%emt 00:00:39]} Kc5 {[%clk 00:51:07]} {[%emt
00:00:06]} 54. Nb2 {[%clk 00:08:29]} {[%emt 00:00:02]} Kc6 {[%clk 00:51:28]}
{[%emt 00:00:09]} 55. Nd3 {[%clk 00:08:55]} {[%emt 00:00:04]} Kd7 {[%clk
00:51:53]} {[%emt 00:00:05]} 56. Nb4 {[%clk 00:09:17]} {[%emt 00:00:08]} Ke7
{[%emt 00:00:35]} 57. Na6 {[%clk 00:09:22]} Kd7 {[%clk 00:52:28]} {[%emt
00:00:15]} 58. Kd5 {[%clk 00:09:45]} {[%emt 00:00:06]} Ke7 {[%clk 00:52:48]}
{[%emt 00:00:10]} 59. Nc5 {[%clk 00:10:11]} {[%emt 00:00:05]} Kf6 {[%clk
00:53:12]} {[%emt 00:00:05]} 60. Ke4 {[%clk 00:10:35]} {[%emt 00:00:06]} Kf7
{[%clk 00:53:33]} {[%emt 00:00:09]} 61. Kf5 {[%clk 00:10:48]} {[%emt 00:00:18]}
Ke7 {[%clk 00:53:54]} {[%emt 00:00:08]} 62. Ke5 {[%clk 00:11:13]} {[%emt
00:00:06]} Kf7 {[%clk 00:54:19]} {[%emt 00:00:05]} 63. Na4 {[%clk 00:11:19]}
{[%emt 00:00:23]} Kg6 {[%clk 00:53:47]} {[%emt 00:01:02]} 64. Nb6 {[%clk
00:11:41]} {[%emt 00:00:09]} Kf7 {[%clk 00:53:40]} {[%emt 00:00:37]} 65. Nd5
{[%clk 00:12:05]} {[%emt 00:00:06]} Kg6 {[%clk 00:54:05]} {[%emt 00:00:04]} 66.
Ke6 {[%clk 00:12:24]} {[%emt 00:00:10]} Kg7 {[%emt 00:00:08]} 67. Ke7 {[%clk
00:12:28]} {[%emt 00:00:25]} Kg6 {[%clk 00:54:32]} {[%emt 00:00:27]} 68. Ne3
{[%clk 00:12:35]} {[%emt 00:00:24]} Kg7 {[%clk 00:54:52]} {[%emt 00:00:07]} 69.
Nd5 {[%clk 00:09:26]} {[%emt 00:03:41]} Kg6 {[%clk 00:55:08]} {[%emt 00:00:13]}
70. Ke6 {[%clk 00:09:44]} {[%emt 00:00:13]} Kg7 {[%clk 00:55:28]} {[%emt
00:00:10]} 71. Nc7 {[%clk 00:10:08]} {[%emt 00:00:07]} Kg6 {[%clk 00:55:29]}
{[%emt 00:00:28]} 72. Ne8 {[%clk 00:10:27]} {[%emt 00:00:12]} Kh5 {[%clk
00:55:37]} {[%emt 00:00:21]} 73. Kf5 {[%clk 00:10:44]} {[%emt 00:00:14]} Kh6
{[%clk 00:56:02]} {[%emt 00:00:05]} 74. Nd6 {[%clk 00:10:24]} {[%emt 00:00:49]}
Kg7 {[%clk 00:56:19]} {[%emt 00:00:12]} 75. Kg5 {[%clk 00:10:30]} {[%emt
00:00:26]} Kh7 {[%clk 00:56:37]} {[%emt 00:00:09]} 76. Nf5 {[%clk 00:10:24]}
{[%emt 00:00:38]} Kg8 {[%clk 00:56:45]} {[%emt 00:00:22]} 77. Kf6 {[%clk
00:10:30]} {[%emt 00:00:24]} Kf8 {[%clk 00:56:37]} {[%emt 00:00:38]} 78. Ng7
{[%clk 00:09:58]} {[%emt 00:01:02]} Kg8 {[%clk 00:57:00]} {[%emt 00:00:07]} 79.
Ne6 {[%clk 00:10:23]} {[%emt 00:00:05]} Kh7 {[%clk 00:57:12]} {[%emt 00:00:17]}
80. Kg5 {[%clk 00:10:38]} {[%emt 00:00:16]} Kg8 {[%clk 00:56:51]} {[%emt
00:00:49]} 81. Kg6 {[%clk 00:11:05]} {[%emt 00:00:05]} Kh8 {[%clk 00:57:15]}
{[%emt 00:00:06]} 82. Neg5 {[%clk 00:11:00]} {[%emt 00:00:36]} Kg8 {[%emt
00:00:11]} 83. Nh7 {[%clk 00:11:26]} Kh8 {[%clk 00:57:58]} {[%emt 00:00:09]} 84.
N3g5 {[%clk 00:11:13]} {[%emt 00:00:43]} Kg8 {[%clk 00:57:52]} {[%emt
00:00:35]} 85. Ne4 {[%clk 00:11:39]} {[%emt 00:00:05]} 1-0

[Event "NJSK 2026 Jeugd C"]
[Site "Helmond, Netherlands"]
[Date "2026.04.29"]
[Round "6.9"]
[White "Nadrshin, Oleg"]
[Black "Huang, Ziyang"]
[Result "1/2-1/2"]
[TimeControl "90min/40moves + 30sec/move"]
[WhiteTitle "-"]
[BlackTitle "-"]
[WhiteFideId "40111873"]
[BlackFideId "40105288"]
[WhiteElo "1894"]
[BlackElo "1721"]

1. e4 {[%clk 01:30:58]} {[%emt 00:00:02]} c5 {[%clk 01:30:59]} {[%emt
00:00:01]} 2. Nf3 {[%clk 01:31:23]} {[%emt 00:00:05]} d6 {[%clk 01:31:26]}
{[%emt 00:00:04]} 3. d4 {[%clk 01:31:50]} {[%emt 00:00:03]} cxd4 {[%clk
01:31:53]} {[%emt 00:00:03]} 4. Nxd4 {[%clk 01:32:12]} {[%emt 00:00:07]} Nf6
{[%clk 01:32:21]} {[%emt 00:00:03]} 5. Nc3 {[%clk 01:32:35]} {[%emt 00:00:06]}
g6 {[%clk 01:32:49]} {[%emt 00:00:01]} 6. Be3 {[%clk 01:32:58]} {[%emt
00:00:07]} Bg7 {[%clk 01:33:18]} {[%emt 00:00:01]} 7. f3 {[%clk 01:33:22]}
{[%emt 00:00:07]} O-O {[%clk 01:33:46]} {[%emt 00:00:02]} 8. Qd2 {[%clk
01:33:46]} {[%emt 00:00:06]} Nc6 {[%clk 01:34:13]} {[%emt 00:00:03]} 9. O-O-O
{[%clk 01:34:10]} {[%emt 00:00:05]} d5 {[%clk 01:34:41]} {[%emt 00:00:03]} 10.
Nxc6 {[%clk 01:34:32]} {[%emt 00:00:07]} bxc6 {[%clk 01:35:10]} {[%emt
00:00:02]} 11. Bh6 {[%clk 01:34:56]} {[%emt 00:00:06]} Be6 {[%clk 01:33:29]}
{[%emt 00:02:11]} 12. Bxg7 {[%clk 01:32:13]} {[%emt 00:03:13]} Kxg7 {[%clk
01:33:08]} {[%emt 00:00:51]} 13. e5 {[%clk 01:27:55]} {[%emt 00:04:47]} Nd7
{[%clk 01:31:02]} {[%emt 00:02:36]} 14. f4 {[%clk 01:22:05]} {[%emt 00:06:20]}
Nc5 {[%clk 01:28:45]} {[%emt 00:02:47]} 15. Be2 {[%clk 01:09:38]} {[%emt
00:12:58]} d4 {[%clk 01:14:40]} {[%emt 00:14:35]} 16. Qxd4 {[%clk 00:56:19]}
{[%emt 00:13:48]} Qb6 {[%clk 01:14:23]} {[%emt 00:00:39]} 17. Ne4 {[%clk
00:47:12]} {[%emt 00:09:46]} Nxe4 {[%clk 01:09:18]} {[%emt 00:05:35]} 18. Qxe4
{[%clk 00:47:37]} {[%emt 00:00:04]} Rab8 {[%clk 01:08:53]} {[%emt 00:00:56]} 19.
Qd4 {[%clk 00:38:23]} {[%emt 00:09:42]} Qa5 {[%clk 01:04:40]} {[%emt 00:04:39]}
20. a3 {[%clk 00:33:29]} {[%emt 00:05:29]} c5 {[%clk 00:59:36]} {[%emt
00:05:34]} 21. Qc3 {[%clk 00:23:19]} {[%emt 00:10:40]} 1/2-1/2

[Event "NJSK 2026 Jeugd C"]
[Site "Helmond, Netherlands"]
[Date "2026.04.29"]
[Round "6.10"]
[White "Okita, Ryoga"]
[Black "Lalkota, Sai Pranav Tejas"]
[Result "1/2-1/2"]
[TimeControl "90min/40moves + 30sec/move"]
[WhiteTitle "-"]
[BlackTitle "-"]
[WhiteFideId "1090666"]
[BlackFideId "1087690"]
[WhiteElo "1812"]
[BlackElo "1830"]

1. e4 {[%clk 01:30:54]} {[%emt 00:00:05]} e6 {[%clk 01:27:42]} {[%emt
00:03:19]} 2. d4 {[%clk 01:31:10]} {[%emt 00:00:14]} d5 {[%clk 01:28:07]}
{[%emt 00:00:05]} 3. Bd3 {[%clk 01:31:33]} {[%emt 00:00:06]} dxe4 {[%clk
01:28:21]} {[%emt 00:00:18]} 4. Bxe4 {[%clk 01:31:51]} {[%emt 00:00:11]} Nf6
{[%clk 01:28:31]} {[%emt 00:00:20]} 5. Bf3 {[%clk 01:32:00]} {[%emt 00:00:21]}
Bd6 {[%clk 01:28:41]} {[%emt 00:00:20]} 6. Ne2 {[%clk 01:32:05]} {[%emt
00:00:25]} c6 {[%clk 01:28:49]} {[%emt 00:00:22]} 7. Nbc3 {[%clk 01:31:20]}
{[%emt 00:01:14]} Qc7 {[%clk 01:28:54]} {[%emt 00:00:26]} 8. Bg5 {[%clk
01:26:18]} {[%emt 00:05:31]} Nbd7 {[%clk 01:28:52]} {[%emt 00:00:33]} 9. Qd2
{[%clk 01:25:50]} {[%emt 00:00:58]} Nd5 {[%clk 01:24:51]} {[%emt 00:04:31]} 10.
Ne4 {[%clk 01:22:48]} {[%emt 00:03:31]} e5 {[%clk 01:18:43]} {[%emt 00:06:39]}
11. Nxd6+ {[%clk 01:20:29]} {[%emt 00:02:48]} Qxd6 {[%clk 01:19:08]} {[%emt
00:00:06]} 12. dxe5 {[%clk 01:20:48]} {[%emt 00:00:11]} Qxe5 {[%clk 01:18:53]}
{[%emt 00:00:45]} 13. O-O-O {[%clk 01:19:24]} {[%emt 00:01:54]} N7b6 {[%clk
01:16:10]} {[%emt 00:03:12]} 14. Nc3 {[%clk 01:17:03]} {[%emt 00:02:51]} O-O
{[%clk 01:10:14]} {[%emt 00:06:27]} 15. Rhe1 {[%clk 01:13:20]} {[%emt
00:04:13]} Qf5 {[%clk 01:08:16]} {[%emt 00:02:22]} 16. Nxd5 {[%clk 01:06:17]}
{[%emt 00:07:38]} cxd5 {[%clk 01:08:20]} {[%emt 00:00:26]} 17. Bxd5 {[%clk
01:01:31]} {[%emt 00:05:16]} Nxd5 {[%clk 01:08:36]} {[%emt 00:00:14]} 18. Qxd5
{[%clk 01:01:55]} {[%emt 00:00:06]} Qxf2 {[%clk 01:08:49]} {[%emt 00:00:17]} 19.
Be7 {[%clk 00:34:25]} {[%emt 00:28:00]} Bf5 {[%clk 01:07:23]} {[%emt 00:01:57]}
20. Qd2 {[%clk 00:32:39]} {[%emt 00:02:15]} Qxd2+ {[%clk 01:07:32]} {[%emt
00:00:21]} 21. Rxd2 {[%clk 00:33:06]} {[%emt 00:00:03]} Rfe8 {[%clk 01:07:30]}
{[%emt 00:00:33]} 22. Bh4 {[%clk 00:29:45]} {[%emt 00:03:50]} Rxe1+ {[%clk
01:07:35]} {[%emt 00:00:26]} 23. Bxe1 {[%clk 00:29:40]} {[%emt 00:00:35]} Re8
{[%clk 01:08:03]} {[%emt 00:00:02]} 24. Bf2 {[%clk 00:30:01]} {[%emt 00:00:09]}
a6 {[%clk 01:08:15]} {[%emt 00:00:18]} 25. b3 {[%clk 00:29:38]} {[%emt
00:00:53]} h5 {[%clk 01:08:24]} {[%emt 00:00:21]} 26. Kb2 {[%clk 00:29:27]}
{[%emt 00:00:40]} g5 {[%clk 01:08:40]} {[%emt 00:00:14]} 27. Rd5 {[%clk
00:26:27]} {[%emt 00:03:31]} Bg6 {[%clk 01:09:00]} {[%emt 00:00:10]} 28. Bd4
{[%clk 00:25:35]} {[%emt 00:01:22]} g4 {[%clk 01:08:36]} {[%emt 00:00:54]} 29.
Rd7 {[%clk 00:24:04]} {[%emt 00:02:00]} Be4 {[%clk 01:08:56]} {[%emt 00:00:10]}
30. g3 {[%emt 00:02:07]} Bc6 {[%clk 01:08:00]} {[%emt 00:01:17]} 31. Rd6 {[%clk
00:22:55]} {[%emt 00:00:12]} Kh7 {[%clk 01:07:37]} {[%emt 00:00:51]} 32. Rf6
{[%clk 00:22:51]} {[%emt 00:00:36]} Bd5 {[%clk 01:06:36]} {[%emt 00:01:28]} 33.
Rf5 {[%clk 00:23:00]} {[%emt 00:00:23]} Be4 {[%clk 01:05:31]} {[%emt 00:01:35]}
34. Rxf7+ {[%clk 00:21:14]} {[%emt 00:02:16]} Kg6 {[%clk 01:05:49]} {[%emt
00:00:09]} 35. Rf6+ {[%clk 00:20:56]} {[%emt 00:00:52]} Kg5 {[%clk 01:05:44]}
{[%emt 00:00:33]} 36. Rf2 {[%clk 00:19:08]} {[%emt 00:02:19]} Bf3 {[%clk
01:05:58]} {[%emt 00:00:16]} 37. Kc3 {[%clk 00:16:33]} {[%emt 00:03:05]} Kf5
{[%clk 01:06:05]} {[%emt 00:00:23]} 38. Kd3 {[%clk 00:16:52]} {[%emt 00:00:12]}
Re1 {[%clk 01:05:58]} {[%emt 00:00:37]} 39. c3 {[%clk 00:16:05]} {[%emt
00:01:17]} Rd1+ {[%clk 01:06:10]} {[%emt 00:00:17]} 40. Rd2 {[%clk 00:15:32]}
{[%emt 00:01:04]} Be4+ {[%clk 01:03:44]} {[%emt 00:02:56]} 41. Ke3 {[%clk
00:15:38]} {[%emt 00:00:23]} Re1+ {[%clk 01:02:51]} {[%emt 00:01:23]} 42. Re2
{[%clk 00:16:00]} {[%emt 00:00:09]} Rh1 {[%clk 01:02:14]} {[%emt 00:01:07]} 43.
Rf2+ {[%clk 00:14:35]} {[%emt 00:01:54]} Bf3 {[%clk 01:02:38]} {[%emt
00:00:06]} 44. b4 {[%clk 00:14:57]} {[%emt 00:00:08]} b5 {[%clk 01:02:56]}
{[%emt 00:00:13]} 45. Kd3 {[%clk 00:14:29]} {[%emt 00:00:57]} Ke6 {[%clk
01:03:07]} {[%emt 00:00:19]} 46. Ke3 {[%clk 00:11:54]} {[%emt 00:03:05]} Kf5
{[%clk 01:03:28]} {[%emt 00:00:09]} 47. Kd3 {[%clk 00:10:56]} {[%emt 00:01:28]}
Re1 {[%clk 01:03:47]} {[%emt 00:00:10]} 48. Kd2 {[%clk 00:10:26]} {[%emt
00:01:01]} Ra1 {[%clk 01:03:49]} {[%emt 00:00:28]} 49. Kd3 {[%clk 00:10:43]}
{[%emt 00:00:13]} Rd1+ {[%clk 01:03:03]} {[%emt 00:01:16]} 50. Kc2 {[%clk
00:11:05]} {[%emt 00:00:08]} Re1 {[%clk 01:02:42]} {[%emt 00:00:47]} 51. Kd3
{[%emt 00:03:46]} 1/2-1/2

[Event "NJSK 2026 Jeugd C"]
[Site "Helmond, Netherlands"]
[Date "2026.04.29"]
[Round "6.11"]
[White "Ozbek, Ahmet Naim"]
[Black "Cubuk, Armin"]
[Result "1-0"]
[TimeControl "90min/40moves + 30sec/move"]
[WhiteTitle "-"]
[BlackTitle "-"]
[WhiteFideId "40101975"]
[BlackFideId "40105423"]
[WhiteElo "1869"]
[BlackElo "1881"]

1. d4 {[%clk 01:30:18]} {[%emt 00:00:41]} Nf6 {[%clk 01:30:57]} {[%emt
00:00:04]} 2. c4 {[%clk 01:30:44]} {[%emt 00:00:04]} g6 {[%clk 01:31:21]}
{[%emt 00:00:05]} 3. Nc3 {[%clk 01:31:11]} {[%emt 00:00:04]} Bg7 {[%clk
01:31:47]} {[%emt 00:00:03]} 4. e4 {[%clk 01:31:37]} {[%emt 00:00:04]} d6
{[%clk 01:32:15]} {[%emt 00:00:04]} 5. Nf3 {[%clk 01:32:03]} {[%emt 00:00:03]}
O-O {[%clk 01:32:37]} {[%emt 00:00:08]} 6. Be2 {[%clk 01:32:30]} {[%emt
00:00:03]} e5 {[%clk 01:30:51]} {[%emt 00:02:16]} 7. O-O {[%clk 01:32:54]}
{[%emt 00:00:06]} Nc6 {[%clk 01:31:19]} {[%emt 00:00:02]} 8. d5 {[%clk
01:33:18]} {[%emt 00:00:06]} Ne7 {[%clk 01:31:45]} {[%emt 00:00:04]} 9. Ne1
{[%clk 01:33:39]} {[%emt 00:00:08]} Ne8 {[%clk 01:29:36]} {[%emt 00:02:39]} 10.
Be3 {[%clk 01:34:03]} {[%emt 00:00:06]} f5 {[%clk 01:29:45]} {[%emt 00:00:22]}
11. f3 {[%clk 01:34:29]} {[%emt 00:00:03]} f4 {[%clk 01:27:49]} {[%emt
00:02:27]} 12. Bf2 {[%clk 01:34:51]} {[%emt 00:00:08]} g5 {[%clk 01:25:48]}
{[%emt 00:02:32]} 13. a4 {[%clk 01:30:02]} {[%emt 00:05:18]} a5 {[%clk
01:22:45]} {[%emt 00:03:31]} 14. Nd3 {[%clk 01:27:15]} {[%emt 00:03:18]} b6
{[%clk 01:21:36]} {[%emt 00:01:39]} 15. b4 {[%clk 01:27:37]} {[%emt 00:00:08]}
axb4 {[%clk 01:16:54]} {[%emt 00:05:12]} 16. Nxb4 {[%clk 01:27:05]} {[%emt
00:01:02]} Bd7 {[%clk 01:16:53]} {[%emt 00:00:31]} 17. Nb5 {[%clk 01:12:28]}
{[%emt 00:15:07]} Nf6 {[%clk 01:13:38]} {[%emt 00:03:45]} 18. Qb3 {[%clk
01:08:06]} {[%emt 00:04:53]} Bxb5 {[%clk 01:10:37]} {[%emt 00:03:30]} 19. cxb5
{[%clk 01:07:51]} {[%emt 00:00:45]} Kh8 {[%clk 01:05:09]} {[%emt 00:05:59]} 20.
Rac1 {[%clk 01:05:54]} {[%emt 00:02:27]} Nd7 {[%clk 01:05:09]} {[%emt
00:00:30]} 21. Rfd1 {[%clk 00:58:36]} {[%emt 00:07:47]} Nc5 {[%clk 01:04:39]}
{[%emt 00:01:00]} 22. Bxc5 {[%clk 00:58:47]} {[%emt 00:00:20]} bxc5 {[%clk
01:05:02]} {[%emt 00:00:06]} 23. Nd3 {[%clk 00:56:20]} {[%emt 00:02:57]} Qe8
{[%clk 01:02:42]} {[%emt 00:02:50]} 24. Nb2 {[%clk 00:55:42]} {[%emt 00:01:09]}
Rf6 {[%clk 01:00:24]} {[%emt 00:02:47]} 25. Nc4 {[%clk 00:55:19]} {[%emt
00:00:54]} Rh6 {[%clk 01:00:21]} {[%emt 00:00:32]} 26. a5 {[%clk 00:51:38]}
{[%emt 00:04:12]} Qh5 {[%clk 00:59:43]} {[%emt 00:01:08]} 27. h3 {[%clk
00:51:57]} {[%emt 00:00:11]} Qh4 {[%clk 00:49:54]} {[%emt 00:10:19]} 28. Qc3
{[%clk 00:51:53]} {[%emt 00:00:35]} g4 {[%clk 00:30:51]} {[%emt 00:19:32]} 29.
fxg4 {[%clk 00:51:30]} {[%emt 00:00:53]} Ng6 {[%clk 00:26:12]} {[%emt
00:05:09]} 30. Bf3 {[%clk 00:50:26]} {[%emt 00:01:34]} Qe7 {[%clk 00:20:01]}
{[%emt 00:06:39]} 31. Ra1 {[%clk 00:48:07]} {[%emt 00:02:50]} Nh4 {[%clk
00:16:37]} {[%emt 00:03:55]} 32. b6 {[%clk 00:46:34]} {[%emt 00:02:04]} Rf8
{[%clk 00:11:59]} {[%emt 00:05:08]} 33. b7 {[%clk 00:45:06]} {[%emt 00:01:57]}
Nxg2 {[%clk 00:11:54]} {[%emt 00:00:35]} 34. Bxg2 {[%clk 00:44:14]} {[%emt
00:01:22]} f3 {[%clk 00:10:29]} {[%emt 00:01:55]} 35. Rf1 {[%clk 00:44:04]}
{[%emt 00:00:40]} fxg2 {[%clk 00:09:51]} {[%emt 00:01:08]} 36. Rxf8+ {[%clk
00:44:28]} {[%emt 00:00:06]} Qxf8 {[%clk 00:10:13]} {[%emt 00:00:08]} 37. a6
{[%clk 00:43:56]} {[%emt 00:01:03]} Rf6 {[%clk 00:10:36]} {[%emt 00:00:06]} 38.
Ne3 {[%clk 00:42:14]} {[%emt 00:02:11]} Rf3 {[%clk 00:09:39]} {[%emt 00:01:27]}
39. a7 {[%clk 00:42:24]} {[%emt 00:00:21]} Rxh3 {[%clk 00:09:59]} {[%emt
00:00:10]} 40. a8=Q {[%clk 00:42:25]} {[%emt 00:00:29]} Rh1+ {[%clk 00:10:18]}
{[%emt 00:00:11]} 41. Kxg2 {[%clk 00:42:49]} {[%emt 00:00:06]} 1-0